fUSD/lending_fUSD_20240501
["ID","MTS","AMOUNT","RATE_DAILY","PERIOD"]
[325133862,1714536454177,154.20889232,9.32e-05,2]
[325133863,1714536454210,190.71677691,9.231e-05,2]
[325133864,1714536454547,154.2066973,7.478e-05,2]
[325133865,1714536454649,150.37745783,7.938e-05,2]
[325133866,1714536454683,154.77231304,7.713e-05,2]
[325133867,1714536454744,154.20889232,9.563e-05,2]
[325133868,1714536455045,154.2066973,8.098e-05,2]
[325133869,1714536455151,150.37745783,8.19e-05,2]
[325133870,1714536455282,154.20889232,9.803e-05,2]
[325133871,1714536455605,154.2066973,8.553e-05,2]
[325133872,1714536455700,150.37745783,8.495e-05,2]
[325133873,1714536456130,154.2066973,8.688e-05,2]
[325133874,1714536456236,150.37745783,8.755e-05,2]
[325133875,1714536490491,684.71861083,0.00010041,2]
[325133876,1714536520651,872.33307435,0.00010041,2]
[325133877,1714536527518,539.0,8.866e-05,2]
[325133878,1714536534841,831.0,8.866e-05,2]
[325133881,1714536555085,1507.08911222,9.943e-05,2]
[325133902,1714536621436,274.43910234,7.979e-05,2]
[325133908,1714536632270,-427.51019987,0.00010042,2]
[325133909,1714536632280,-150.37745783,0.00010043,2]
[325133910,1714536632291,-300.82598677,0.00010085,2]
[325133911,1714536632301,-300.82598677,0.00010192,2]
[325133912,1714536632311,-154.20889232,0.00010211,2]
[325133913,1714536632321,-300.82598677,0.00010236,2]
[325133914,1714536632331,-279.85,0.00010248,2]
[325133915,1714536632341,-318.10808137,0.00010263,2]
[325133916,1714536632385,-334.18191863,0.00010263,2]
[325133917,1714536632395,-1985.65,0.00010277,2]
[325133918,1714536632404,-153.44759758,0.00010334,2]
[325133919,1714536632413,-156.42,0.00010372,2]
[325133920,1714536632423,-499.99,0.00010399,2]
[325133921,1714536632432,-18.68408542,0.00010488,2]
[325133922,1714536632447,-135.52261188,0.00010488,2]
[325133923,1714536632456,-309.0,0.00010507,2]
[325133924,1714536632465,-250.0,0.00010529,2]
[325133925,1714536632475,-150.37745783,0.00010548,2]
[325133926,1714536632485,-155.78528379,0.00010564,2]
[325133927,1714536632495,-154.77231304,0.0001072,2]
[325133928,1714536632505,-153.9565219,0.00010741,2]
[325133929,1714536632515,-154.2066973,0.00010781,2]
[325133930,1714536632526,-200.0,0.00010959,2]
[325133931,1714536632536,-520.11871426,0.00011,2]
[325133932,1714536632549,-360.62128574,0.00011,2]
[325133933,1714536632559,-159.75363846,0.00011045,2]
[325133934,1714536632568,-389.11774871,0.00011136,2]
[325133935,1714536632577,-389.11774871,0.00011247,2]
[325133936,1714536632586,-150.37745783,0.0001127,2]
[325133937,1714536632596,-154.2066973,0.00011281,2]
[325133938,1714536632605,-150.0,0.00011281,2]
[325133939,1714536632615,-155.36168259,0.00011389,2]
[325133940,1714536632624,-157.06,0.0001139,2]
[325133941,1714536632634,-279.85,0.00011529,2]
[325133942,1714536632643,-389.11774871,0.00011627,2]
[325133944,1714536632653,-152.57172008,0.00011703,2]
[325133946,1714536632662,-1120.55135,0.0001171,2]
[325133948,1714536632675,-8585.24832677,0.00011726,2]
[325133951,1714536632691,-9062.18820004,0.00011726,2]
[325133954,1714536632712,-1974.8225,0.00011726,2]
[325133957,1714536632732,-6366.5969441,0.00011726,2]
[325134019,1714536638142,-1216.41733906,0.00011726,2]
[325134026,1714536638196,-8501.0086756,0.00011726,2]
[325134038,1714536638305,-3972.35151443,0.00011726,2]
[325134039,1714536638315,-1749.82939912,0.00011726,2]
[325134040,1714536638324,-163.15103213,0.00011727,2]
[325134041,1714536638334,-1327.2753,0.00011727,2]
[325134042,1714536638343,-1000.0,0.00011728,2]
[325134043,1714536638352,-10567.39275432,0.00011728,2]
[325134044,1714536638364,-2304.84654568,0.00011728,2]
[325134045,1714536638374,-1000.0,0.00011731,2]
[325134046,1714536638384,-500.0,0.00011731,2]
[325134047,1714536638393,-1000.0,0.00011732,2]
[325134048,1714536638404,-500.0,0.00011732,2]
[325134049,1714536638415,-500.0,0.00011732,2]
[325134050,1714536638424,-161.91,0.00011816,2]
[325134051,1714536638435,-749.61088695,0.00011824,2]
[325134052,1714536638446,-407.80370592,0.00011825,2]
[325134053,1714536638457,-500.0,0.00011825,2]
[325134054,1714536638467,-613.46,0.00011825,2]
[325134055,1714536638477,-500.0,0.00011825,2]
[325134056,1714536638488,-1243.19,0.00011825,2]
[325134057,1714536638497,-500.0,0.00011825,2]
[325134058,1714536638507,-500.0,0.00011825,2]
[325134059,1714536638517,-549.57,0.00011825,2]
[325134061,1714536638527,-568.55,0.00011825,2]
[325134063,1714536638538,-500.0,0.00011825,2]
[325134065,1714536638548,-500.0,0.00011825,2]
[325134091,1714536638557,-3393.43,0.00011825,2]
[325134094,1714536638794,-668.38,0.00011825,2]
[325134096,1714536638804,-500.0,0.00011825,2]
[325134097,1714536638816,-1307.66,0.00011825,2]
[325134099,1714536638826,-504.4720075,0.00011825,2]
[325134102,1714536638836,-500.0,0.00011825,2]
[325134103,1714536638846,-1049.54,0.00011825,2]
[325134106,1714536638855,-557.44,0.00011825,2]
[325134108,1714536638866,-510.71867419,0.00011825,2]
[325134110,1714536638875,-500.0,0.00011825,2]
[325134112,1714536638884,-500.0,0.00011825,2]
[325134114,1714536638894,-500.0,0.00011825,2]
[325134116,1714536638902,-669.11,0.00011825,2]
[325134117,1714536638911,-539.4182059,0.00011825,2]
[325134119,1714536638921,-748.35,0.00011825,2]
[325134121,1714536638931,-500.0,0.00011825,2]
[325134124,1714536638941,-500.0,0.00011825,2]
[325134126,1714536638951,-500.0,0.00011825,2]
[325134128,1714536638961,-734.45,0.00011825,2]
[325134129,1714536638970,-4049.26,0.00011825,2]
[325134132,1714536638979,-500.0,0.00011825,2]
[325134134,1714536638989,-500.0,0.00011825,2]
[325134136,1714536638999,-500.0,0.00011825,2]
[325134137,1714536639008,-511.02062102,0.00011825,2]
[325134140,1714536639018,-975.73,0.00011825,2]
[325134141,1714536639027,-516.56,0.00011825,2]
[325134144,1714536639036,-500.0,0.00011825,2]
[325134145,1714536639046,-2385.65,0.00011825,2]
[325134147,1714536639056,-1581.16,0.00011825,2]
[325134149,1714536639065,-500.0,0.00011825,2]
[325134151,1714536639074,-3438.51,0.00011825,2]
[325134153,1714536639084,-814.39,0.00011825,2]
[325134156,1714536639094,-645.78,0.00011825,2]
[325134158,1714536639103,-1600.19,0.00011825,2]
[325134159,1714536639113,-2630.54,0.00011825,2]
[325134162,1714536639123,-1655.52,0.00011825,2]
[325134164,1714536639132,-500.0,0.00011825,2]
[325134166,1714536639141,-1211.06,0.00011825,2]
[325134168,1714536639151,-892.74,0.00011825,2]
[325134170,1714536639160,-500.0,0.00011825,2]
[325134172,1714536639170,-10084.4,0.00011825,2]
[325134174,1714536639179,-96.75445631,0.00011825,2]
[325134179,1714536639224,-2356.05554369,0.00011825,2]
[325134182,1714536639234,-688.88,0.00011825,2]
[325134184,1714536639243,-311.76445634,0.00011825,2]
[325134187,1714536639269,-888.53424801,0.00011825,2]
[325134252,1714536639929,-2500.0,0.00011825,2]
[325134255,1714536639956,-470.39933602,0.00011825,2]
[325134263,1714536640013,-933.04790105,0.00011825,2]
[325134266,1714536640036,-53.86405858,0.00011825,2]
[325134268,1714536640046,-849.45,0.00011825,2]
[325134270,1714536640055,-891.05,0.00011825,2]
[325134272,1714536640064,-500.0,0.00011825,2]
[325134274,1714536640073,-500.0,0.00011825,2]
[325134276,1714536640082,-500.0,0.00011825,2]
[325134278,1714536640091,-500.0,0.00011825,2]
[325134280,1714536640101,-500.0,0.00011825,2]
[325134282,1714536640110,-1834.84,0.00011825,2]
[325134284,1714536640119,-2116.2,0.00011825,2]
[325134286,1714536640128,-672.81,0.00011825,2]
[325134288,1714536640138,-1286.03,0.00011825,2]
[325134290,1714536640147,-576.46083093,0.00011825,2]
[325134292,1714536640156,-500.0,0.00011825,2]
[325134294,1714536640166,-500.0,0.00011825,2]
[325134296,1714536640175,-500.0,0.00011825,2]
[325134298,1714536640185,-500.0,0.00011825,2]
[325134300,1714536640194,-451.4654112,0.00011825,2]
[325134302,1714536640209,-48.5345888,0.00011825,2]
[325134304,1714536640218,-500.0,0.00011825,2]
[325134306,1714536640228,-240.76794012,0.00011825,2]
[325134309,1714536640237,-500.0,0.00011825,2]
[325134311,1714536640246,-3737.83747108,0.00011825,2]
[325134316,1714536640287,-6380.06252892,0.00011825,2]
[325134318,1714536640297,-500.0,0.00011825,2]
[325134320,1714536640305,-893.50378376,0.00011825,2]
[325134324,1714536640334,-83.46621624,0.00011825,2]
[325134326,1714536640343,-2900.20774545,0.00011825,2]
[325134914,1714536645877,-324.92839964,0.00011001,2]
[325134924,1714536645964,-675.07160036,0.00011001,2]
[325134926,1714536645974,-8678.89225455,0.00011825,2]
[325134928,1714536645983,-621.4,0.00011825,2]
[325134930,1714536645993,-383.99980612,0.00011825,2]
[325134932,1714536646002,-220.44119217,0.00011825,2]
[325134934,1714536646011,-511.59,0.00011825,2]
[325134936,1714536646020,-500.0,0.00011825,2]
[325134937,1714536646030,-500.0,0.00011825,2]
[325134938,1714536646040,-361.65737203,0.00011826,2]
[325134939,1714536646050,-1045.62850231,0.00011826,2]
[325134940,1714536646064,-155.22628046,0.00011826,2]
[325134942,1714536646074,-628.67486569,0.00011826,2]
[325134944,1714536646084,-500.0,0.00011826,2]
[325134945,1714536646094,-500.0,0.00011826,2]
[325134947,1714536646103,-500.0,0.00011826,2]
[325134950,1714536646113,-509.57797981,0.00011826,2]
[325134952,1714536646124,-523.66969391,0.00011826,2]
[325134954,1714536646135,-500.0,0.00011826,2]
[325134956,1714536646144,-626.75962175,0.00011826,2]
[325134958,1714536646155,-332.13896927,0.00011826,2]
[325134960,1714536646164,-561.40626621,0.00011826,2]
[325134962,1714536646175,-356.17947016,0.00011826,2]
[325134964,1714536646184,-500.0,0.00011826,2]
[325134966,1714536646194,-500.0,0.00011826,2]
[325134968,1714536646204,-500.0,0.00011826,2]
[325134970,1714536646213,-518.33443864,0.00011826,2]
[325134972,1714536646223,-323.12772397,0.00011826,2]
[325134974,1714536646232,-500.0,0.00011826,2]
[325134976,1714536646242,-500.0,0.00011826,2]
[325134978,1714536646251,-500.0,0.00011826,2]
[325134980,1714536646261,-515.08930652,0.00011826,2]
[325134982,1714536646270,-500.0,0.00011826,2]
[325134984,1714536646279,-500.0,0.00011826,2]
[325134986,1714536646289,-500.0,0.00011826,2]
[325134988,1714536646298,-500.0,0.00011826,2]
[325134990,1714536646312,-500.0,0.00011826,2]
[325134992,1714536646322,-500.0,0.00011826,2]
[325134995,1714536646331,-500.0,0.00011826,2]
[325134997,1714536646341,-577.37,0.00011826,2]
[325134999,1714536646350,-500.0,0.00011826,2]
[325135001,1714536646360,-510.75920072,0.00011826,2]
[325135003,1714536646369,-500.0,0.00011826,2]
[325135004,1714536646378,-500.0,0.00011826,2]
[325135007,1714536646388,-503.67760458,0.00011826,2]
[325135009,1714536646398,-500.0,0.00011826,2]
[325135010,1714536646407,-500.0,0.00011826,2]
[325135013,1714536646416,-500.0,0.00011826,2]
[325135015,1714536646426,-185.7541211,0.00011826,2]
[325135017,1714536646436,-500.0,0.00011826,2]
[325135019,1714536646449,-504.59064235,0.00011826,2]
[325135021,1714536646458,-500.0,0.00011826,2]
[325135023,1714536646468,-500.0,0.00011826,2]
[325135025,1714536646479,-500.0,0.00011826,2]
[325135027,1714536646488,-500.0,0.00011826,2]
[325135029,1714536646497,-500.0,0.00011826,2]
[325135031,1714536646507,-603.01294489,0.00011826,2]
[325135033,1714536646516,-500.0,0.00011826,2]
[325135035,1714536646527,-504.91227822,0.00011826,2]
[325135037,1714536646537,-501.26,0.00011826,2]
[325135039,1714536646546,-487.67043737,0.00011826,2]
[325135041,1714536646557,-500.0,0.00011826,2]
[325135043,1714536646566,-313.52013099,0.00011826,2]
[325135045,1714536646575,-500.0,0.00011826,2]
[325135047,1714536646585,-261.77560631,0.00011826,2]
[325135049,1714536646594,-594.05270647,0.00011826,2]
[325135051,1714536646603,-500.0,0.00011826,2]
[325135053,1714536646613,-500.0,0.00011826,2]
[325135055,1714536646622,-500.0,0.00011826,2]
[325135057,1714536646632,-500.0,0.00011826,2]
[325135082,1714536646847,-711.53,0.00011826,2]
[325135085,1714536646869,-367.29294322,0.00011826,2]
[325135087,1714536646878,-500.0,0.00011826,2]
[325135089,1714536646887,-500.0,0.00011826,2]
[325135091,1714536646897,-546.50022645,0.00011826,2]
[325135093,1714536646906,-508.06720927,0.00011826,2]
[325135095,1714536646915,-513.32580793,0.00011826,2]
[325135097,1714536646925,-357.09702944,0.00011826,2]
[325135099,1714536646934,-500.0,0.00011826,2]
[325135101,1714536646943,-500.0,0.00011826,2]
[325135103,1714536646952,-500.0,0.00011826,2]
[325135105,1714536646961,-500.0,0.00011826,2]
[325135107,1714536646971,-500.0,0.00011826,2]
[325135109,1714536646981,-531.17040704,0.00011826,2]
[325135110,1714536646990,-503.53111428,0.00011826,2]
[325135111,1714536646999,-500.0,0.00011826,2]
[325135112,1714536647007,-500.0,0.00011826,2]
[325135113,1714536647016,-500.0,0.00011826,2]
[325135114,1714536647025,-500.0,0.00011826,2]
[325135115,1714536647034,-500.0,0.00011826,2]
[325135117,1714536647043,-500.0,0.00011826,2]
[325135119,1714536647053,-500.0,0.00011826,2]
[325135121,1714536647062,-500.0,0.00011826,2]
[325135123,1714536647072,-500.0,0.00011826,2]
[325135125,1714536647081,-514.49802094,0.00011826,2]
[325135127,1714536647090,-517.0894278,0.00011826,2]
[325135129,1714536647098,-500.0,0.00011826,2]
[325135131,1714536647108,-500.0,0.00011826,2]
[325135133,1714536647116,-500.0,0.00011826,2]
[325135135,1714536647127,-712.72,0.00011826,2]
[325135137,1714536647136,-518.14260569,0.00011826,2]
[325135139,1714536647145,-500.0,0.00011826,2]
[325135141,1714536647154,-500.0,0.00011826,2]
[325135143,1714536647164,-372.7395176,0.00011826,2]
[325135145,1714536647173,-515.17070356,0.00011826,2]
[325135147,1714536647182,-500.0,0.00011826,2]
[325135149,1714536647191,-500.0,0.00011826,2]
[325135151,1714536647201,-434.44787512,0.00011826,2]
[325135153,1714536647211,-500.0,0.00011826,2]
[325135155,1714536647220,-500.0,0.00011826,2]
[325135157,1714536647230,-500.0,0.00011826,2]
[325135159,1714536647240,-500.0,0.00011826,2]
[325135161,1714536647249,-500.0,0.00011826,2]
[325135164,1714536647259,-591.51720868,0.00011826,2]
[325135165,1714536647268,-500.0,0.00011826,2]
[325135167,1714536647278,-500.0,0.00011826,2]
[325135170,1714536647288,-500.0,0.00011826,2]
[325135172,1714536647297,-175.87887892,0.00011826,2]
[325135174,1714536647308,-568.34005569,0.00011826,2]
[325135175,1714536647316,-500.0,0.00011826,2]
[325135177,1714536647326,-500.0,0.00011826,2]
[325135180,1714536647335,-502.73871871,0.00011826,2]
[325135181,1714536647348,-507.64311744,0.00011826,2]
[325135184,1714536647357,-500.0,0.00011826,2]
[325135185,1714536647366,-506.72609708,0.00011826,2]
[325135188,1714536647376,-500.0,0.00011826,2]
[325135189,1714536647385,-500.0,0.00011826,2]
[325135191,1714536647395,-500.0,0.00011826,2]
[325135193,1714536647404,-506.12862491,0.00011826,2]
[325135195,1714536647413,-500.0,0.00011826,2]
[325135197,1714536647423,-500.0,0.00011826,2]
[325135199,1714536647432,-500.0,0.00011826,2]
[325135201,1714536647442,-500.0,0.00011826,2]
[325135204,1714536647455,-500.0,0.00011826,2]
[325135206,1714536647464,-504.86734421,0.00011826,2]
[325135207,1714536647473,-150.0,0.00011826,2]
[325135210,1714536647483,-582.18638048,0.00011826,2]
[325135212,1714536647492,-311.19243713,0.00011826,2]
[325135213,1714536647501,-500.0,0.00011826,2]
[325135215,1714536647510,-500.0,0.00011826,2]
[325135218,1714536647521,-500.0,0.00011826,2]
[325135220,1714536647531,-500.0,0.00011826,2]
[325135222,1714536647549,-500.0,0.00011826,2]
[325135224,1714536647561,-500.0,0.00011826,2]
[325135226,1714536647570,-241.33285263,0.00011826,2]
[325135228,1714536647579,-500.0,0.00011826,2]
[325135230,1714536647588,-509.79866634,0.00011826,2]
[325135233,1714536647597,-500.0,0.00011826,2]
[325135234,1714536647606,-500.0,0.00011826,2]
[325135236,1714536647615,-507.09369092,0.00011826,2]
[325135238,1714536647625,-500.0,0.00011826,2]
[325135240,1714536647634,-500.0,0.00011826,2]
[325135242,1714536647643,-500.0,0.00011826,2]
[325135244,1714536647652,-500.0,0.00011826,2]
[325135246,1714536647660,-500.0,0.00011826,2]
[325135248,1714536647670,-500.0,0.00011826,2]
[325135250,1714536647679,-512.30479325,0.00011826,2]
[325135252,1714536647689,-500.0,0.00011826,2]
[325135254,1714536647699,-508.64489637,0.00011826,2]
[325135256,1714536647708,-500.0,0.00011826,2]
[325135258,1714536647717,-500.0,0.00011826,2]
[325135260,1714536647726,-500.0,0.00011826,2]
[325135263,1714536647736,-500.10103797,0.00011826,2]
[325135265,1714536647745,-500.0,0.00011826,2]
[325135267,1714536647754,-500.0,0.00011826,2]
[325135269,1714536647763,-500.0,0.00011826,2]
[325135271,1714536647773,-554.06722504,0.00011826,2]
[325135273,1714536647782,-511.1948572,0.00011826,2]
[325135275,1714536647792,-500.0,0.00011826,2]
[325135277,1714536647801,-500.0,0.00011826,2]
[325135279,1714536647813,-505.82094152,0.00011826,2]
[325135281,1714536647823,-504.74206909,0.00011826,2]
[325135283,1714536647832,-500.0,0.00011826,2]
[325135285,1714536647842,-500.0,0.00011826,2]
[325135287,1714536647850,-500.0,0.00011826,2]
[325135289,1714536647859,-500.0,0.00011826,2]
[325135291,1714536647870,-500.0,0.00011826,2]
[325135292,1714536647879,-505.34066967,0.00011826,2]
[325135293,1714536647888,-503.32595842,0.00011826,2]
[325135294,1714536647898,-509.30091183,0.00011826,2]
[325135295,1714536647907,-503.69470284,0.00011826,2]
[325135296,1714536647916,-500.0,0.00011826,2]
[325135297,1714536647925,-500.0,0.00011826,2]
[325135299,1714536647934,-500.0,0.00011826,2]
[325135301,1714536647944,-500.0,0.00011826,2]
[325135303,1714536647953,-517.7549488,0.00011826,2]
[325135305,1714536647962,-510.77772579,0.00011826,2]
[325135307,1714536647971,-500.0,0.00011826,2]
[325135309,1714536647981,-500.0,0.00011826,2]
[325135312,1714536647991,-569.78,0.00011826,2]
[325135314,1714536648000,-500.0,0.00011826,2]
[325135316,1714536648009,-513.74884818,0.00011826,2]
[325135318,1714536648019,-500.0,0.00011826,2]
[325135320,1714536648028,-500.0,0.00011826,2]
[325135322,1714536648037,-500.0,0.00011826,2]
[325135323,1714536648046,-500.0,0.00011826,2]
[325135325,1714536648057,-500.0,0.00011826,2]
[325135327,1714536648066,-500.0,0.00011826,2]
[325135329,1714536648075,-500.0,0.00011826,2]
[325135332,1714536648085,-500.0,0.00011826,2]
[325135333,1714536648095,-507.89699186,0.00011826,2]
[325135336,1714536648104,-500.0,0.00011826,2]
[325135337,1714536648114,-500.0,0.00011826,2]
[325135340,1714536648123,-501.53489465,0.00011826,2]
[325135342,1714536648133,-500.0,0.00011826,2]
[325135344,1714536648142,-500.0,0.00011826,2]
[325135346,1714536648151,-500.0,0.00011826,2]
[325135348,1714536648160,-500.0,0.00011826,2]
[325135350,1714536648169,-500.0,0.00011826,2]
[325135352,1714536648178,-2568.7,0.00011826,2]
[325135354,1714536648187,-521.05207786,0.00011826,2]
[325135356,1714536648197,-500.0,0.00011826,2]
[325135358,1714536648206,-543.90548133,0.00011826,2]
[325135360,1714536648215,-501.87342901,0.00011826,2]
[325135361,1714536648228,-500.0,0.00011826,2]
[325135364,1714536648237,-500.0,0.00011826,2]
[325135365,1714536648247,-500.0,0.00011826,2]
[325135367,1714536648256,-500.0,0.00011826,2]
[325135370,1714536648266,-500.0,0.00011826,2]
[325135372,1714536648276,-500.0,0.00011826,2]
[325135374,1714536648286,-500.0,0.00011826,2]
[325135375,1714536648295,-500.0,0.00011826,2]
[325135377,1714536648305,-500.0,0.00011826,2]
[325135379,1714536648314,-514.58255158,0.00011826,2]
[325135381,1714536648324,-500.0,0.00011826,2]
[325135382,1714536648333,-500.0,0.00011826,2]
[325135384,1714536648343,-500.0,0.00011826,2]
[325135386,1714536648352,-500.0,0.00011826,2]
[325135387,1714536648361,-501.38889389,0.00011826,2]
[325135389,1714536648370,-500.0,0.00011826,2]
[325135390,1714536648379,-500.0,0.00011826,2]
[325135392,1714536648388,-500.0,0.00011826,2]
[325135393,1714536648397,-500.0,0.00011826,2]
[325135395,1714536648407,-500.0,0.00011826,2]
[325135396,1714536648416,-601.2,0.00011826,2]
[325135398,1714536648425,-500.0,0.00011826,2]
[325135399,1714536648434,-500.0,0.00011826,2]
[325135401,1714536648444,-500.0,0.00011826,2]
[325135403,1714536648456,-500.0,0.00011826,2]
[325135404,1714536648464,-500.0,0.00011826,2]
[325135406,1714536648474,-518.29171594,0.00011826,2]
[325135407,1714536648485,-500.0,0.00011826,2]
[325135409,1714536648494,-500.0,0.00011826,2]
[325135410,1714536648503,-500.0,0.00011826,2]
[325135412,1714536648512,-500.0,0.00011826,2]
[325135414,1714536648523,-500.0,0.00011826,2]
[325135415,1714536648533,-510.982172,0.00011826,2]
[325135417,1714536648542,-500.0,0.00011826,2]
[325135418,1714536648551,-506.22457881,0.00011826,2]
[325135420,1714536648562,-500.0,0.00011826,2]
[325135422,1714536648571,-500.0,0.00011826,2]
[325135423,1714536648582,-485.72235865,0.00011826,2]
[325135425,1714536648591,-505.31577113,0.00011826,2]
[325135427,1714536648601,-500.0,0.00011826,2]
[325135429,1714536648611,-259.30766147,0.00011826,2]
[325135430,1714536648620,-501.18354996,0.00011826,2]
[325135432,1714536648630,-503.57166984,0.00011826,2]
[325135434,1714536648639,-500.0,0.00011826,2]
[325135435,1714536648647,-500.0,0.00011826,2]
[325135437,1714536648657,-500.0,0.00011826,2]
[325135439,1714536648667,-500.0,0.00011826,2]
[325135440,1714536648676,-500.0,0.00011826,2]
[325135442,1714536648686,-500.0,0.00011826,2]
[325135444,1714536648695,-500.0,0.00011826,2]
[325135445,1714536648705,-502.76264367,0.00011826,2]
[325135447,1714536648714,-500.0,0.00011826,2]
[325135449,1714536648724,-500.0,0.00011826,2]
[325135451,1714536648733,-503.62427732,0.00011826,2]
[325135452,1714536648743,-500.0,0.00011826,2]
[325135454,1714536648751,-317.84321935,0.00011826,2]
[325135456,1714536648761,-500.0,0.00011826,2]
[325135457,1714536648770,-500.0,0.00011826,2]
[325135459,1714536648779,-500.0,0.00011826,2]
[325135460,1714536648788,-500.0,0.00011826,2]
[325135462,1714536648798,-965.13,0.00011826,2]
[325135464,1714536648808,-500.0,0.00011826,2]
[325135465,1714536648817,-500.0,0.00011826,2]
[325135467,1714536648826,-500.0,0.00011826,2]
[325135469,1714536648835,-501.22396862,0.00011826,2]
[325135470,1714536648845,-500.0,0.00011826,2]
[325135472,1714536648854,-500.0,0.00011826,2]
[325135474,1714536648863,-500.0,0.00011826,2]
[325135475,1714536648872,-500.0,0.00011826,2]
[325135477,1714536648882,-500.0,0.00011826,2]
[325135479,1714536648892,-500.0,0.00011826,2]
[325135480,1714536648902,-500.0,0.00011826,2]
[325135482,1714536648911,-500.0,0.00011826,2]
[325135484,1714536648921,-500.0,0.00011826,2]
[325135485,1714536648930,-500.0,0.00011826,2]
[325135486,1714536648940,-500.0,0.00011826,2]
[325135487,1714536648949,-500.0,0.00011826,2]
[325135488,1714536648959,-500.0,0.00011826,2]
[325135489,1714536648968,-500.0,0.00011826,2]
[325135490,1714536648978,-500.0,0.00011826,2]
[325135491,1714536648987,-500.0,0.00011826,2]
[325135492,1714536648996,-502.68314899,0.00011826,2]
[325135494,1714536649006,-500.0,0.00011826,2]
[325135496,1714536649016,-500.0,0.00011826,2]
[325135498,1714536649024,-500.0,0.00011826,2]
[325135500,1714536649033,-500.0,0.00011826,2]
[325135502,1714536649042,-500.0,0.00011826,2]
[325135504,1714536649051,-500.0,0.00011826,2]
[325135506,1714536649063,-500.0,0.00011826,2]
[325135508,1714536649072,-501.40053373,0.00011826,2]
[325135510,1714536649080,-500.0,0.00011826,2]
[325135512,1714536649090,-500.0,0.00011826,2]
[325135514,1714536649099,-503.8509811,0.00011826,2]
[325135516,1714536649108,-500.0,0.00011826,2]
[325135518,1714536649117,-500.0,0.00011826,2]
[325135520,1714536649127,-500.0,0.00011826,2]
[325135522,1714536649136,-500.0,0.00011826,2]
[325135524,1714536649145,-500.0,0.00011826,2]
[325135526,1714536649155,-500.0,0.00011826,2]
[325135528,1714536649164,-500.0,0.00011826,2]
[325135530,1714536649174,-500.0,0.00011826,2]
[325135532,1714536649183,-500.0,0.00011826,2]
[325135534,1714536649193,-500.0,0.00011826,2]
[325135536,1714536649202,-502.70336189,0.00011826,2]
[325135538,1714536649211,-500.0,0.00011826,2]
[325135540,1714536649220,-500.0,0.00011826,2]
[325135542,1714536649230,-500.0,0.00011826,2]
[325135544,1714536649239,-500.0,0.00011826,2]
[325135546,1714536649248,-500.0,0.00011826,2]
[325135548,1714536649257,-500.0,0.00011826,2]
[325135550,1714536649267,-500.0,0.00011826,2]
[325135552,1714536649276,-502.66982533,0.00011826,2]
[325135554,1714536649286,-500.0,0.00011826,2]
[325135556,1714536649295,-500.0,0.00011826,2]
[325135558,1714536649305,-3728.94,0.00011826,2]
[325135561,1714536649317,-500.0,0.00011826,2]
[325135563,1714536649326,-500.0,0.00011826,2]
[325135565,1714536649335,-500.0,0.00011826,2]
[325135567,1714536649344,-500.0,0.00011826,2]
[325135569,1714536649353,-500.0,0.00011826,2]
[325135570,1714536649363,-500.0,0.00011826,2]
[325135572,1714536649372,-500.0,0.00011826,2]